[Event "9e Open International de Porticcio"]
[Site "Porticcio, France"]
[Date "2024.07.01"]
[Round "4.9"]
[White "Daulet, Alikhan"]
[Black "Deladerriere, Helio"]
[Result "1-0"]
[TimeControl "1h30+30s/move"]
[WhiteElo "1877"]
[BlackElo "1850"]

1. d4 {[%clk 01:30:57]} {[%emt 00:00:02]} d5 {[%clk 01:29:24]} {[%emt
00:01:37]} 2. c4 {[%clk 01:31:19]} {[%emt 00:00:07]} dxc4 {[%clk 01:29:45]}
{[%emt 00:00:09]} 3. Nf3 {[%clk 01:31:38]} {[%emt 00:00:11]} a6 {[%clk
01:29:50]} {[%emt 00:00:25]} 4. e3 {[%clk 01:30:57]} {[%emt 00:01:11]} b5
{[%clk 01:30:02]} {[%emt 00:00:18]} 5. a4 {[%clk 01:31:16]} {[%emt 00:00:12]}
Bb7 {[%clk 01:30:14]} {[%emt 00:00:17]} 6. b3 {[%clk 01:31:20]} {[%emt
00:00:26]} e6 {[%clk 01:25:50]} {[%emt 00:04:54]} 7. bxc4 {[%clk 01:30:51]}
{[%emt 00:00:59]} bxc4 {[%clk 01:25:13]} {[%emt 00:01:07]} 8. Bxc4 {[%clk
01:30:05]} {[%emt 00:01:17]} Nf6 {[%clk 01:23:54]} {[%emt 00:01:49]} 9. O-O
{[%clk 01:29:24]} {[%emt 00:01:11]} Bd6 {[%clk 01:23:47]} {[%emt 00:00:37]} 10.
Nbd2 {[%clk 01:27:46]} {[%emt 00:02:08]} O-O {[%clk 01:22:06]} {[%emt
00:02:12]} 11. Qe2 {[%clk 01:27:46]} {[%emt 00:00:29]} Nc6 {[%clk 01:12:22]}
{[%emt 00:10:13]} 12. a5 {[%clk 01:25:54]} {[%emt 00:02:23]} e5 {[%clk
01:06:23]} {[%emt 00:06:30]} 13. d5 {[%clk 01:24:21]} {[%emt 00:02:02]} Ne7
{[%clk 01:05:11]} {[%emt 00:01:42]} 14. e4 {[%clk 01:24:46]} {[%emt 00:00:04]}
c6 {[%clk 01:04:18]} {[%emt 00:01:23]} 15. dxc6 {[%clk 01:24:45]} {[%emt
00:00:31]} Nxc6 {[%clk 01:04:24]} {[%emt 00:00:25]} 16. Nb3 {[%clk 01:24:55]}
{[%emt 00:00:19]} Nd4 {[%clk 01:01:38]} {[%emt 00:03:16]} 17. Nfxd4 {[%clk
01:20:23]} {[%emt 00:05:03]} exd4 {[%clk 01:01:57]} {[%emt 00:00:10]} 18. e5
{[%clk 01:19:20]} {[%emt 00:01:34]} Re8 {[%clk 01:00:44]} {[%emt 00:01:43]} 19.
f4 {[%clk 01:19:03]} {[%emt 00:00:47]} Nd7 {[%clk 00:59:01]} {[%emt 00:02:13]}
20. Bxf7+ {[%clk 01:15:26]} {[%emt 00:04:07]} Kxf7 {[%clk 00:57:50]} {[%emt
00:01:41]} 21. Qc4+ {[%clk 01:15:39]} {[%emt 00:00:17]} Kf8 {[%clk 00:52:15]}
{[%emt 00:06:05]} 22. exd6 {[%clk 01:15:45]} {[%emt 00:00:24]} Rc8 {[%clk
00:49:55]} {[%emt 00:02:50]} 23. Qd3 {[%clk 01:14:57]} {[%emt 00:01:18]} Kg8
{[%clk 00:46:58]} {[%emt 00:03:27]} 24. Bb2 {[%clk 01:11:14]} {[%emt 00:04:14]}
Nf6 {[%clk 00:45:27]} {[%emt 00:02:02]} 25. Nxd4 {[%clk 01:09:32]} {[%emt
00:02:12]} Qxd6 {[%clk 00:43:29]} {[%emt 00:02:27]} 26. Qg3 {[%clk 01:08:34]}
{[%emt 00:01:22]} Ne4 {[%clk 00:35:25]} {[%emt 00:08:41]} 27. Qg4 {[%clk
01:08:41]} {[%emt 00:00:13]} Nf6 {[%clk 00:33:37]} {[%emt 00:02:28]} 28. Qg3
{[%clk 01:02:51]} {[%emt 00:06:20]} Ne4 {[%clk 00:26:37]} {[%emt 00:07:30]} 29.
Qa3 {[%clk 01:01:51]} {[%emt 00:01:30]} Qd5 {[%clk 00:18:08]} {[%emt 00:08:59]}
30. Qa2 {[%clk 01:01:39]} {[%emt 00:00:42]} Rc4 {[%clk 00:17:07]} {[%emt
00:01:31]} 31. Rfe1 {[%clk 00:59:10]} {[%emt 00:02:58]} Rf8 {[%clk 00:12:41]}
{[%emt 00:04:56]} 32. Rxe4 {[%clk 00:58:36]} {[%emt 00:01:04]} Kh8 {[%clk
00:08:43]} {[%emt 00:04:28]} 33. Qa3 {[%clk 00:57:37]} {[%emt 00:01:30]} Rg8
{[%clk 00:05:32]} {[%emt 00:03:40]} 34. Rae1 {[%clk 00:57:38]} {[%emt
00:00:28]} Rc5 {[%clk 00:02:41]} {[%emt 00:03:22]} 35. Nf3 {[%clk 00:57:28]}
{[%emt 00:00:40]} Rxa5 {[%clk 00:02:42]} {[%emt 00:00:29]} 36. Bxg7+ {[%clk
00:57:07]} {[%emt 00:00:51]} Kxg7 {[%clk 00:02:10]} {[%emt 00:01:01]} 37. Qe7+
{[%clk 00:57:13]} {[%emt 00:00:24]} Qf7 {[%clk 00:00:35]} {[%emt 00:02:06]} 38.
Qxf7+ {[%clk 00:57:35]} {[%emt 00:00:08]} Kxf7 {[%clk 00:01:04]} {[%emt
00:00:01]} 39. Re7+ {[%clk 00:57:59]} {[%emt 00:00:05]} Kg6 {[%clk 00:01:09]}
{[%emt 00:00:25]} 40. Rxb7 {[%clk 00:58:24]} {[%emt 00:00:05]} 1-0

[Event "9e Open International de Porticcio"]
[Site "Porticcio, France"]
[Date "2024.07.01"]
[Round "4.10"]
[White "Don Ignazi, Pierre Ange"]
[Black "Blair, Michael"]
[Result "1-0"]
[TimeControl "1h30+30s/move"]
[WhiteElo "1870"]
[BlackElo "1757"]

1. e4 {[%clk 01:30:28]} {[%emt 00:00:29]} c5 {[%clk 01:30:54]} {[%emt
00:00:08]} 2. Nf3 {[%clk 01:30:46]} {[%emt 00:00:12]} e6 {[%clk 01:31:19]}
{[%emt 00:00:06]} 3. d4 {[%clk 01:31:07]} {[%emt 00:00:08]} cxd4 {[%clk
01:31:44]} {[%emt 00:00:05]} 4. Nxd4 {[%clk 01:31:31]} {[%emt 00:00:06]} a6
{[%clk 01:31:53]} {[%emt 00:00:21]} 5. g3 {[%clk 01:28:58]} {[%emt 00:03:03]}
Nc6 {[%clk 01:28:23]} {[%emt 00:04:00]} 6. Nxc6 {[%clk 01:27:10]} {[%emt
00:02:18]} bxc6 {[%clk 01:28:45]} {[%emt 00:00:09]} 7. Bg2 {[%clk 01:27:35]}
{[%emt 00:00:04]} d5 {[%clk 01:27:22]} {[%emt 00:01:53]} 8. O-O {[%clk
01:27:35]} {[%emt 00:00:29]} Nf6 {[%clk 01:24:46]} {[%emt 00:03:06]} 9. exd5
{[%clk 01:20:10]} {[%emt 00:07:56]} cxd5 {[%clk 01:24:59]} {[%emt 00:00:17]} 10.
c4 {[%clk 01:20:32]} {[%emt 00:00:08]} Rb8 {[%clk 01:14:29]} {[%emt 00:11:01]}
11. cxd5 {[%clk 01:18:00]} {[%emt 00:03:02]} Nxd5 {[%clk 01:13:38]} {[%emt
00:01:20]} 12. Qe2 {[%clk 01:07:39]} {[%emt 00:10:50]} Be7 {[%clk 01:02:40]}
{[%emt 00:11:30]} 13. Rd1 {[%clk 01:06:44]} {[%emt 00:01:24]} Qb6 {[%clk
00:56:34]} {[%emt 00:06:36]} 14. Nc3 {[%clk 00:58:26]} {[%emt 00:08:49]} Nxc3
{[%clk 00:36:54]} {[%emt 00:20:10]} 15. bxc3 {[%clk 00:58:19]} {[%emt
00:00:36]} Bd7 {[%clk 00:35:17]} {[%emt 00:02:08]} 16. Bf4 {[%clk 00:52:29]}
{[%emt 00:06:19]} Bb5 {[%clk 00:22:13]} {[%emt 00:13:34]} 17. Qe5 {[%clk
00:49:52]} {[%emt 00:03:07]} O-O {[%clk 00:21:20]} {[%emt 00:01:24]} 18. Rab1
{[%clk 00:46:24]} {[%emt 00:03:58]} Rbd8 {[%clk 00:17:57]} {[%emt 00:03:53]} 19.
Rxd8 {[%clk 00:38:25]} {[%emt 00:08:30]} Qxd8 {[%clk 00:18:11]} {[%emt
00:00:15]} 20. Be4 {[%clk 00:35:34]} {[%emt 00:03:20]} Bf6 {[%clk 00:15:48]}
{[%emt 00:02:54]} 21. Qh5 {[%clk 00:32:06]} {[%emt 00:03:58]} g6 {[%clk
00:15:54]} {[%emt 00:00:25]} 22. Qf3 {[%clk 00:32:18]} {[%emt 00:00:15]} Bg7
{[%clk 00:12:49]} {[%emt 00:03:37]} 23. Bc2 {[%clk 00:17:22]} {[%emt 00:15:26]}
Qf6 {[%clk 00:11:15]} {[%emt 00:02:05]} 24. Qe3 {[%clk 00:14:28]} {[%emt
00:03:24]} Qxc3 {[%clk 00:10:13]} {[%emt 00:01:31]} 25. Qxc3 {[%clk 00:14:15]}
{[%emt 00:00:44]} Bxc3 {[%clk 00:10:37]} {[%emt 00:00:05]} 26. a4 {[%clk
00:14:39]} {[%emt 00:00:07]} Be2 {[%clk 00:09:08]} {[%emt 00:01:59]} 27. Be4
{[%clk 00:11:21]} {[%emt 00:03:49]} Rd8 {[%clk 00:08:42]} {[%emt 00:00:55]} 28.
Bc7 {[%clk 00:06:31]} {[%emt 00:05:21]} Rd1+ {[%clk 00:08:43]} {[%emt
00:00:28]} 29. Rxd1 {[%clk 00:06:47]} {[%emt 00:00:14]} Bxd1 {[%clk 00:09:07]}
{[%emt 00:00:05]} 30. Bc6 {[%clk 00:06:52]} {[%emt 00:00:25]} Be2 {[%clk
00:08:28]} {[%emt 00:01:09]} 31. Bb6 {[%clk 00:06:52]} {[%emt 00:00:31]} g5
{[%clk 00:07:31]} {[%emt 00:01:26]} 32. f3 {[%clk 00:06:19]} {[%emt 00:01:03]}
Kg7 {[%clk 00:06:25]} {[%emt 00:01:36]} 33. Kf2 {[%clk 00:06:40]} {[%emt
00:00:10]} Bd1 {[%clk 00:06:46]} {[%emt 00:00:09]} 34. Ke3 {[%clk 00:06:34]}
{[%emt 00:00:36]} Be1 {[%clk 00:04:25]} {[%emt 00:02:51]} 35. a5 {[%clk
00:02:19]} {[%emt 00:04:46]} Bb3 {[%clk 00:03:10]} {[%emt 00:01:44]} 36. Kd3
{[%clk 00:02:48]} {[%emt 00:00:02]} h5 {[%clk 00:02:21]} {[%emt 00:01:19]} 37.
Bb7 {[%clk 00:02:59]} {[%emt 00:00:19]} Bb4 {[%clk 00:01:59]} {[%emt 00:00:51]}
38. Bxa6 {[%clk 00:03:04]} {[%emt 00:00:25]} Bd5 {[%clk 00:02:12]} {[%emt
00:00:16]} 39. Ke2 {[%clk 00:02:35]} {[%emt 00:00:59]} e5 {[%clk 00:01:29]}
{[%emt 00:01:14]} 40. Bd3 {[%clk 00:02:43]} {[%emt 00:00:22]} Bc3 {[%clk
00:01:01]} {[%emt 00:00:58]} 41. a6 {[%clk 00:02:53]} {[%emt 00:00:20]} g4
{[%clk 00:01:09]} {[%emt 00:00:22]} 42. fxg4 {[%clk 00:01:17]} {[%emt
00:02:07]} hxg4 {[%clk 00:01:30]} {[%emt 00:00:09]} 43. Kf2 {[%clk 00:00:48]}
{[%emt 00:00:58]} Kf6 {[%clk 00:00:58]} {[%emt 00:01:02]} 44. Be2 {[%clk
00:00:53]} {[%emt 00:00:25]} Ke6 {[%clk 00:00:51]} {[%emt 00:00:37]} 45. Bxg4+
{[%clk 00:00:58]} {[%emt 00:00:25]} f5 {[%clk 00:01:15]} {[%emt 00:00:06]} 46.
Be2 {[%clk 00:01:11]} {[%emt 00:00:12]} Kd6 {[%clk 00:01:11]} {[%emt 00:00:38]}
47. Bd8 {[%clk 00:00:57]} {[%emt 00:00:44]} Bd4+ {[%clk 00:01:30]} {[%emt
00:00:12]} 48. Kf1 {[%clk 00:01:03]} {[%emt 00:00:23]} f4 {[%clk 00:01:19]}
{[%emt 00:00:41]} 49. gxf4 {[%clk 00:00:47]} {[%emt 00:00:46]} exf4 {[%clk
00:01:43]} {[%emt 00:00:06]} 50. Bd3 {[%clk 00:01:02]} {[%emt 00:00:14]} f3
{[%clk 00:01:35]} {[%emt 00:00:38]} 51. h4 {[%clk 00:01:10]} {[%emt 00:00:23]}
Be6 {[%clk 00:01:29]} {[%emt 00:00:36]} 52. Ke1 {[%clk 00:00:32]} {[%emt
00:01:08]} f2+ {[%clk 00:01:06]} {[%emt 00:00:53]} 53. Kd2 {[%clk 00:00:51]}
{[%emt 00:00:10]} Bg4 {[%clk 00:00:48]} {[%emt 00:00:48]} 54. Bf1 {[%clk
00:00:56]} {[%emt 00:00:25]} Ba7 {[%clk 00:01:05]} {[%emt 00:00:13]} 55. Bg5
{[%clk 00:01:10]} {[%emt 00:00:16]} Ke6 {[%clk 00:00:40]} {[%emt 00:00:55]} 56.
Be3 {[%clk 00:01:22]} {[%emt 00:00:18]} Bb8 {[%clk 00:00:43]} {[%emt 00:00:27]}
57. a7 {[%clk 00:01:15]} {[%emt 00:00:37]} Bxa7 {[%clk 00:01:09]} {[%emt
00:00:04]} 58. Bxa7 {[%emt 00:00:02]} Kf5 {[%clk 00:01:05]} {[%emt 00:00:32]}
59. Ke3 {[%clk 00:01:59]} {[%emt 00:00:16]} Bd1 {[%clk 00:01:08]} {[%emt
00:00:27]} 60. Bh3+ {[%clk 00:01:21]} {[%emt 00:01:08]} Bg4 {[%clk 00:01:20]}
{[%emt 00:00:18]} 61. Bf1 {[%clk 00:01:47]} {[%emt 00:00:04]} Bd1 {[%emt
00:00:34]} 62. Kd2 {[%clk 00:01:45]} {[%emt 00:00:01]} Bg4 {[%clk 00:02:05]}
{[%emt 00:00:11]} 63. Bxf2 {[%clk 00:02:12]} {[%emt 00:00:03]} Bh5 {[%clk
00:02:19]} {[%emt 00:00:16]} 64. Ke3 {[%clk 00:02:34]} {[%emt 00:00:08]} Be8
{[%clk 00:02:33]} {[%emt 00:00:16]} 65. Bh3+ {[%clk 00:02:57]} {[%emt
00:00:07]} Kg6 {[%clk 00:02:30]} {[%emt 00:00:34]} 66. Kf4 {[%clk 00:03:13]}
{[%emt 00:00:14]} Bf7 {[%clk 00:02:23]} {[%emt 00:00:36]} 67. Bg4 {[%clk
00:03:31]} {[%emt 00:00:12]} Kh6 {[%clk 00:02:39]} {[%emt 00:00:15]} 68. Kf5
{[%clk 00:03:36]} {[%emt 00:00:24]} Bg6+ {[%clk 00:02:42]} {[%emt 00:00:27]} 69.
Kf6 {[%clk 00:04:01]} {[%emt 00:00:04]} Be8 {[%clk 00:02:55]} {[%emt 00:00:18]}
70. Be3 {[%clk 00:04:22]} {[%emt 00:00:09]} Kh7 {[%clk 00:03:16]} {[%emt
00:00:08]} 71. Bf5+ {[%clk 00:04:44]} {[%emt 00:00:09]} Kh8 {[%clk 00:03:08]}
{[%emt 00:00:38]} 72. Bg6 {[%clk 00:05:09]} {[%emt 00:00:05]} Bb5 {[%clk
00:03:18]} {[%emt 00:00:20]} 73. Bd4 {[%clk 00:05:21]} {[%emt 00:00:18]} Bc4
{[%clk 00:03:32]} {[%emt 00:00:17]} 74. h5 {[%clk 00:05:39]} {[%emt 00:00:11]}
Bb3 {[%clk 00:01:57]} {[%emt 00:02:05]} 75. h6 {[%clk 00:05:59]} {[%emt
00:00:10]} Bg8 {[%clk 00:01:42]} {[%emt 00:00:45]} 76. Kf5# {[%clk 00:06:18]}
{[%emt 00:00:11]} 1-0

[Event "9e Open International de Porticcio"]
[Site "Porticcio, France"]
[Date "2024.07.01"]
[Round "4.11"]
[White "Grisoni, Emma"]
[Black "Bernardi, Alexandre"]
[Result "1/2-1/2"]
[TimeControl "1h30+30s/move"]
[WhiteElo "1746"]
[BlackElo "1866"]

1. e4 {[%clk 01:30:58]} {[%emt 00:37:42]} e5 {[%clk 01:30:30]} {[%emt
00:00:30]} 2. Nf3 {[%clk 01:31:25]} {[%emt 00:00:04]} Nc6 {[%clk 01:30:56]}
{[%emt 00:00:04]} 3. d4 {[%clk 01:31:51]} {[%emt 00:00:03]} exd4 {[%clk
01:31:15]} {[%emt 00:00:11]} 4. Bc4 {[%clk 01:31:48]} {[%emt 00:00:33]} Nf6
{[%clk 01:31:21]} {[%emt 00:00:23]} 5. O-O {[%clk 01:31:36]} {[%emt 00:00:42]}
Nxe4 {[%clk 01:30:54]} {[%emt 00:00:57]} 6. Re1 {[%clk 01:31:45]} {[%emt
00:00:21]} d5 {[%clk 01:31:18]} {[%emt 00:00:06]} 7. Bxd5 {[%clk 01:31:40]}
{[%emt 00:00:35]} Qxd5 {[%clk 01:31:42]} {[%emt 00:00:06]} 8. Nc3 {[%clk
01:32:00]} {[%emt 00:00:10]} Qh5 {[%clk 01:31:54]} {[%emt 00:00:18]} 9. Nxe4
{[%clk 01:30:14]} {[%emt 00:02:16]} Be6 {[%clk 01:32:09]} {[%emt 00:00:15]} 10.
Bg5 {[%clk 01:30:11]} {[%emt 00:00:33]} Bd6 {[%clk 01:32:07]} {[%emt 00:00:32]}
11. Nxd6+ {[%clk 01:30:27]} {[%emt 00:00:14]} cxd6 {[%clk 01:32:28]} {[%emt
00:00:09]} 12. Bf4 {[%clk 01:30:41]} {[%emt 00:00:16]} Qd5 {[%clk 01:17:37]}
{[%emt 00:15:21]} 13. c3 {[%clk 01:27:23]} {[%emt 00:03:49]} O-O {[%clk
01:16:23]} {[%emt 00:01:44]} 14. Nxd4 {[%clk 01:25:27]} {[%emt 00:02:26]} Nxd4
{[%clk 01:12:33]} {[%emt 00:04:20]} 15. Qxd4 {[%clk 01:22:18]} {[%emt
00:03:40]} Qxd4 {[%clk 01:11:42]} {[%emt 00:01:20]} 16. cxd4 {[%clk 01:21:32]}
{[%emt 00:01:17]} Rfd8 {[%clk 01:08:20]} {[%emt 00:03:51]} 17. a4 {[%clk
01:18:29]} {[%emt 00:03:34]} Rac8 {[%clk 01:05:46]} {[%emt 00:03:03]} 18. Rac1
{[%clk 01:17:53]} {[%emt 00:01:06]} d5 {[%clk 01:04:43]} {[%emt 00:01:33]} 19.
Rxc8 {[%clk 01:13:12]} {[%emt 00:05:12]} Rxc8 {[%clk 01:04:48]} {[%emt
00:00:24]} 20. Rc1 {[%clk 01:12:27]} {[%emt 00:01:14]} Rxc1+ {[%clk 01:02:29]}
{[%emt 00:02:49]} 21. Bxc1 {[%clk 01:12:53]} {[%emt 00:00:04]} Kf8 {[%clk
01:02:11]} {[%emt 00:00:47]} 22. Kf1 {[%clk 01:12:42]} {[%emt 00:00:40]} Ke7
{[%clk 01:02:06]} {[%emt 00:00:35]} 23. Ke2 {[%clk 01:12:56]} {[%emt 00:00:15]}
Bf5 {[%clk 01:02:03]} {[%emt 00:00:34]} 24. b4 {[%clk 01:10:43]} {[%emt
00:02:44]} Ke6 {[%clk 01:00:05]} {[%emt 00:02:27]} 25. Bf4 {[%clk 01:10:15]}
{[%emt 00:00:58]} Bc2 {[%clk 00:59:48]} {[%emt 00:00:46]} 26. a5 {[%clk
01:10:20]} {[%emt 00:00:26]} Kf5 {[%clk 00:59:57]} {[%emt 00:00:21]} 27. Bb8
{[%clk 01:10:37]} {[%emt 00:00:14]} a6 {[%clk 01:00:19]} {[%emt 00:00:08]} 28.
Ke3 {[%clk 01:11:01]} {[%emt 00:00:06]} Bb3 {[%clk 01:00:06]} {[%emt 00:00:43]}
29. Bc7 {[%clk 01:09:30]} {[%emt 00:02:01]} Bc2 {[%clk 01:00:18]} {[%emt
00:00:17]} 30. Bb8 {[%clk 01:09:36]} {[%emt 00:00:24]} Bb3 {[%clk 01:00:35]}
{[%emt 00:00:14]} 31. Bc7 {[%clk 01:09:36]} {[%emt 00:00:30]} Bc2 {[%clk
00:59:42]} {[%emt 00:01:23]} 32. Bb8 {[%clk 01:09:50]} {[%emt 00:00:16]} Bb3
{[%emt 00:00:36]} 33. Ke4+ {[%emt 00:00:08]} Ke5+ {[%clk 00:59:21]} 1/2-1/2

[Event "9e Open International de Porticcio"]
[Site "Porticcio, France"]
[Date "2024.07.02"]
[Round "5.1"]
[White "Fedorchuk, Sergey A."]
[Black "Druska, Juraj"]
[Result "1-0"]
[TimeControl "1h30+30s/move"]
[WhiteElo "2546"]
[BlackElo "2466"]

1. e4 {[%clk 01:30:55]} {[%emt 00:00:03]} e5 {[%clk 01:30:39]} {[%emt
00:00:22]} 2. Nf3 {[%clk 01:29:04]} {[%emt 00:02:21]} Nf6 {[%clk 01:30:56]}
{[%emt 00:00:13]} 3. Nxe5 {[%clk 01:26:33]} {[%emt 00:03:00]} d6 {[%clk
01:31:16]} {[%emt 00:00:11]} 4. Nf3 {[%clk 01:25:52]} {[%emt 00:01:10]} Nxe4
{[%clk 01:31:36]} {[%emt 00:00:11]} 5. d3 {[%clk 01:22:52]} {[%emt 00:03:31]}
Nf6 {[%clk 01:31:57]} {[%emt 00:00:09]} 6. d4 {[%clk 01:23:17]} {[%emt
00:00:04]} d5 {[%clk 01:29:15]} {[%emt 00:03:12]} 7. Bd3 {[%clk 01:23:24]}
{[%emt 00:00:23]} Bd6 {[%clk 01:29:37]} {[%emt 00:00:07]} 8. O-O {[%clk
01:20:59]} {[%emt 00:02:55]} O-O {[%clk 01:29:59]} {[%emt 00:00:09]} 9. h3
{[%clk 01:19:34]} {[%emt 00:01:54]} h6 {[%clk 01:29:26]} {[%emt 00:01:03]} 10.
Re1 {[%clk 01:18:50]} {[%emt 00:01:14]} Re8 {[%clk 01:28:57]} {[%emt 00:01:00]}
11. Rxe8+ {[%clk 01:17:54]} {[%emt 00:01:25]} Qxe8 {[%clk 01:28:32]} {[%emt
00:00:55]} 12. Nc3 {[%clk 01:17:56]} {[%emt 00:00:27]} a6 {[%clk 01:21:52]}
{[%emt 00:07:11]} 13. Ne2 {[%clk 01:14:10]} {[%emt 00:04:15]} Nc6 {[%clk
01:21:45]} {[%emt 00:00:37]} 14. Bf4 {[%clk 01:11:50]} {[%emt 00:02:50]} Nb4
{[%clk 01:14:15]} {[%emt 00:08:02]} 15. Bxd6 {[%clk 01:02:48]} {[%emt
00:09:31]} cxd6 {[%clk 01:14:43]} {[%emt 00:00:02]} 16. Ng3 {[%clk 01:02:58]}
{[%emt 00:00:19]} Qa4 {[%clk 00:59:31]} {[%emt 00:15:43]} 17. a3 {[%clk
00:36:49]} {[%emt 00:26:39]} Nxd3 {[%clk 00:59:42]} {[%emt 00:00:19]} 18. Qxd3
{[%clk 00:37:14]} {[%emt 00:00:05]} Bd7 {[%clk 00:55:49]} {[%emt 00:04:23]} 19.
Re1 {[%clk 00:36:26]} {[%emt 00:01:18]} Re8 {[%clk 00:36:45]} {[%emt 00:19:35]}
20. Rxe8+ {[%clk 00:34:58]} {[%emt 00:01:57]} Nxe8 {[%clk 00:37:09]} {[%emt
00:00:06]} 21. Nh4 {[%clk 00:27:51]} {[%emt 00:07:37]} Nf6 {[%clk 00:22:59]}
{[%emt 00:14:41]} 22. Nhf5 {[%clk 00:25:59]} {[%emt 00:02:21]} Bxf5 {[%clk
00:23:06]} {[%emt 00:00:24]} 23. Nxf5 {[%clk 00:26:12]} {[%emt 00:00:16]} Qd7
{[%clk 00:23:16]} {[%emt 00:00:20]} 24. g4 {[%clk 00:20:31]} {[%emt 00:06:11]}
Qe6 {[%clk 00:16:34]} {[%emt 00:07:13]} 25. Qe3 {[%clk 00:17:30]} {[%emt
00:03:30]} Ne8 {[%clk 00:16:56]} {[%emt 00:00:08]} 26. f3 {[%clk 00:13:59]}
{[%emt 00:04:01]} h5 {[%clk 00:16:43]} {[%emt 00:00:43]} 27. Kf2 {[%clk
00:14:18]} {[%emt 00:00:11]} hxg4 {[%clk 00:16:30]} {[%emt 00:00:44]} 28. hxg4
{[%clk 00:14:34]} {[%emt 00:00:13]} g6 {[%clk 00:15:44]} {[%emt 00:01:17]} 29.
Qg5 {[%clk 00:11:11]} {[%emt 00:03:53]} Nf6 {[%clk 00:13:44]} {[%emt 00:02:30]}
30. c3 {[%clk 00:09:07]} {[%emt 00:02:34]} a5 {[%clk 00:11:30]} {[%emt
00:02:44]} 31. a4 {[%clk 00:07:25]} {[%emt 00:02:12]} Qd7 {[%clk 00:08:48]}
{[%emt 00:03:12]} 32. Qxf6 {[%clk 00:05:18]} {[%emt 00:02:36]} gxf5 {[%clk
00:09:17]} {[%emt 00:00:02]} 33. Qxf5 {[%clk 00:05:22]} {[%emt 00:00:25]} Qxf5
{[%clk 00:03:03]} {[%emt 00:06:45]} 34. gxf5 {[%clk 00:05:50]} {[%emt
00:00:01]} Kg7 {[%clk 00:03:30]} {[%emt 00:00:04]} 35. Kg3 {[%clk 00:06:03]}
{[%emt 00:00:17]} Kh6 {[%clk 00:03:52]} {[%emt 00:00:07]} 36. Kg4 {[%clk
00:04:33]} {[%emt 00:02:00]} f6 {[%clk 00:04:09]} {[%emt 00:00:13]} 37. b3
{[%clk 00:04:01]} {[%emt 00:01:01]} b6 {[%clk 00:04:35]} {[%emt 00:00:04]} 38.
c4 {[%clk 00:03:58]} {[%emt 00:00:34]} Kg7 {[%clk 00:05:04]} {[%emt 00:00:01]}
39. Kf4 {[%clk 00:03:09]} {[%emt 00:01:19]} Kh6 {[%clk 00:05:15]} {[%emt
00:00:19]} 40. cxd5 {[%clk 00:03:08]} {[%emt 00:00:31]} Kh5 {[%clk 00:05:40]}
{[%emt 00:00:05]} 41. Ke3 {[%clk 00:03:28]} {[%emt 00:00:10]} Kg5 {[%clk
00:06:04]} {[%emt 00:00:06]} 42. Ke4 {[%clk 00:03:46]} {[%emt 00:00:12]} 1-0